[Event "POL-chT 1 Liga 2019"]
[Site "Dzwirzyno"]
[Date "2019.09.09"]
[Round "3.18"]
[White "Malicka, Maria"]
[Black "Jablonska, Sabina"]
[Result "1-0"]
[ECO "B06"]
[WhiteElo "2095"]
[BlackElo "1928"]
[Annotator "NA RC"]
[PlyCount "65"]
[EventDate "2019.09.07"]
[EventType "team-tourn"]
[EventCountry "POL"]
[SourceTitle "playchess.com"]
[Source "ChessBase"]
[SourceQuality "1"]
[TimeControl "40/5400+30:1800+30"]

1. e4 {[%emt 0:00:00]} g6 {[%emt 0:00:00]} 2. d4 {[%emt 0:00:00]} Bg7 {[%emt 0:00:00]} 3. Nc3 {[%emt 0:00:00]} c5 {[%emt 0:00:00]} 4. d5 {[%emt 0:02:22]} d6 {[%emt 0:00:13]} 5. Nf3 {[%emt 0:04:01]} Nf6 {[%emt 0:05:35]} 6. Be2 {[%emt 0:04:09]} Nbd7 {[%emt 0:09:51]} 7. O-O {[%emt 0:00:52]} O-O {[%emt 0:01:06]} 8. a4 {[%emt 0:00:56]} a6 {[%emt 0:03:45]} 9. a5 {[%emt 0:01:31]} b5 {[%emt 0:02:30]} 10. axb6 {[%emt 0:00:12]} Nxb6 11. h3 {[%emt 0:10:46]} Bb7 {[%emt 0:05:35]} 12. Be3 {[%emt 0:00:42]} h6 {[%emt 0:09:13]} 13. Qd2 {[%emt 0:04:36]} Kh7 {[%emt 0:00:29]} 14. Ra2 {[%emt 0:00:50]} e6 {[%emt 0:11:20]} 15. dxe6 {[%emt 0:01:25]} Nxe4 {[%emt 0:04:51]} 16. Nxe4 {[%emt 0:00:21]} Bxe4 {[%emt 0:00:03]} 17. exf7 {[%emt 0:08:46]} Rxf7 {[%emt 0:03:13]} 18. Rfa1 {[%emt 0:06:09]} Bb7 {[%emt 0:22:06]} 19. Nh2 {[%emt 0:08:18]} Qf8 {[%emt 0:07:46]} 20. c3 {[%emt 0:04:56]} Nd5 {[%emt 0:05:04]} 21. Bxa6 {[%emt 0:04:00]} Nxe3 {[%emt 0:00:51]} 22. Bxb7 {[%emt 0:04:31]} Rxa2 {[%emt 0:03:15]} 23. Rxa2 {[%emt 0:00:01]} Rxb7 {[%emt 0:01:59]} 24. Qxe3 {[%emt 0:03:50]} Qg8 {[%emt 0:01:35]} 25. Ra6 {[%emt 0:12:48]} Rxb2 {[%emt 0:00:10]} 26. Rxd6 {[%emt 0:00:25]} Rb1+ {[%emt 0:01:17]} 27. Nf1 {[%emt 0:00:01]} Qc4 {[%emt 0:00:16]} 28. Rd3 {[%emt 0:03:26]} Qa2 {[%emt 0:00:23]} 29. Rd7 {[%emt 0:05:27]} Qa1 {[%emt 0:00:23]} 30. Qe5 {[%emt 0:01:44]} Rxf1+ {[%emt 0:01:17]} 31. Kh2 {[%emt 0:00:01]} Rh1+ {[%emt 0:00:27]} 32. Kg3 {[%emt 0:00:02]} Rxh3+ {[%emt 0:00:46]} 33. Kxh3 {[%emt 0:00:20]} 1-0

[Event "POL-chT 1 Liga 2019"]
[Site "Dzwirzyno"]
[Date "2019.09.09"]
[Round "3.27"]
[White "Szmacinski, Slawomir"]
[Black "Grabarczyk, Miroslaw"]
[Result "0-1"]
[ECO "A08"]
[WhiteElo "1848"]
[BlackElo "2374"]
[Annotator "RC"]
[PlyCount "88"]
[EventDate "2019.09.07"]
[EventType "team-tourn"]
[EventCountry "POL"]
[SourceTitle "playchess.com"]
[Source "ChessBase"]
[SourceQuality "1"]
[TimeControl "40/5400+30:1800+30"]

1. g3 {[%emt 0:00:00]} d5 {[%emt 0:00:25]} 2. Nf3 {[%emt 0:00:00]} c5 {[%emt 0:02:14]} 3. Bg2 {[%emt 0:01:40]} Nc6 {[%emt 0:00:13]} 4. d4 {[%emt 0:01:38]} Nf6 {[%emt 0:00:14]} 5. c3 {[%emt 0:01:13]} e6 {[%emt 0:03:05]} 6. O-O {[%emt 0:01:23]} Be7 {[%emt 0:00:39]} 7. Bg5 {[%emt 0:03:03]} h6 {[%emt 0:05:11]} 8. Bf4 {[%emt 0:05:28]} O-O {[%emt 0:02:06]} 9. Ne5 {[%emt 0:05:33]} Qb6 {[%emt 0:13:56]} 10. Nxc6 {[%emt 0:01:44]} bxc6 {[%emt 0:00:15]} 11. b3 {[%emt 0:00:04]} a5 {[%emt 0:04:49]} 12. dxc5 {[%emt 0:02:42]} Bxc5 {[%emt 0:00:17]} 13. e3 {[%emt 0:08:06]} Re8 {[%emt 0:18:40]} 14. Be5 {[%emt 0:05:24]} Nd7 {[%emt 0:00:10]} 15. Bd4 {[%emt 0:00:03]} Ba6 {[%emt 0:00:15]} 16. Re1 {[%emt 0:00:10]} e5 {[%emt 0:00:08]} 17. Bxc5 {[%emt 0:00:16]} Nxc5 {[%emt 0:00:09]} 18. Bf1 {[%emt 0:02:20]} Re6 {[%emt 0:05:36]} 19. Bxa6 {[%emt 0:04:14]} Qxa6 {[%emt 0:00:44]} 20. Qc2 {[%emt 0:05:51]} Nd3 {[%emt 0:07:02]} 21. Rf1 {[%emt 0:00:55]} e4 {[%emt 0:03:19]} 22. Nd2 {[%emt 0:01:22]} Rf6 {[%emt 0:07:18]} 23. Kg2 {[%emt 0:03:24]} Re8 {[%emt 0:05:26]} 24. Rad1 {[%emt 0:06:54]} Qa7 {[%emt 0:07:46]} 25. Nb1 {[%emt 0:04:37]} Re5 {[%emt 0:01:11]} 26. Rd2 {[%emt 0:07:41]} Ref5 {[%emt 0:00:58]} 27. Re2 {[%emt 0:01:18]} Rxf2+ {[%emt 0:00:39]} 28. Rfxf2 {[%emt 0:04:48]} Rxf2+ {[%emt 0:00:09]} 29. Kg1 {[%emt 0:01:11]} Rf3 {[%emt 0:00:58]} 30. Qd2 {[%emt 0:00:41]} Ne5 {[%emt 0:03:46]} 31. Qd4 {[%emt 0:06:59]} Rxg3+ {[%emt 0:01:09]} 32. Kf2 {[%emt 0:00:50]} Rf3+ {[%emt 0:00:41]} 33. Ke1 {[%emt 0:00:51]} Nd3+ {[%emt 0:01:19]} 34. Kd2 {[%emt 0:01:14]} Qe7 {[%emt 0:01:20]} 35. c4 {[%emt 0:00:41]} dxc4 {[%emt 0:01:27]} 36. Qxc4 {[%emt 0:01:07]} Qd6 {[%emt 0:01:18]} 37. Qd4 {[%emt 0:03:11]} Qxd4 {[%emt 0:00:39]} 38. exd4 {[%emt 0:00:04]} f5 {[%emt 0:00:13]} 39. Nc3 {[%emt 0:01:22]} Nb4 {[%emt 0:00:43]} 40. Re3 {[%emt 0:00:00]} Rxe3 {[%emt 0:00:00]} 41. Kxe3 {[%emt 0:01:23]} Kf7 {[%emt 0:01:29]} 42. Kf4 {[%emt 0:00:51]} Ke6 {[%emt 0:00:30]} 43. h4 {[%emt 0:00:30]} Nd5+ {[%emt 0:00:27]} 44. Nxd5 {[%emt 0:00:07]} Kxd5 {[%emt 0:00:10]} 0-1

[Event "POL-chT 1 Liga 2019"]
[Site "Dzwirzyno"]
[Date "2019.09.09"]
[Round "3.30"]
[White "Kantane, Anna"]
[Black "Miturova, Magdalena"]
[Result "0-1"]
[ECO "C86"]
[WhiteElo "2273"]
[BlackElo "2219"]
[Annotator "RC"]
[PlyCount "116"]
[EventDate "2019.09.07"]
[EventType "team-tourn"]
[EventCountry "POL"]
[SourceTitle "playchess.com"]
[Source "ChessBase"]
[SourceQuality "1"]
[TimeControl "40/5400+30:1800+30"]

1. e4 {[%emt 0:00:25]} e5 {[%emt 0:00:00]} 2. Nf3 {[%emt 0:00:12]} Nc6 {[%emt 0:00:00]} 3. Bb5 {[%emt 0:00:08]} a6 {[%emt 0:00:00]} 4. Ba4 {[%emt 0:00:06]} Nf6 {[%emt 0:00:00]} 5. O-O {[%emt 0:00:09]} Be7 {[%emt 0:00:27]} 6. Qe2 {[%emt 0:00:10]} d6 {[%emt 0:04:39]} 7. c3 {[%emt 0:02:52]} Bg4 {[%emt 0:06:42]} 8. d3 {[%emt 0:07:51]} Nd7 {[%emt 0:00:39]} 9. Nbd2 {[%emt 0:02:38]} Nc5 {[%emt 0:03:13]} 10. Bc2 {[%emt 0:08:38]} Ne6 {[%emt 0:01:18]} 11. Nc4 {[%emt 0:01:14]} Bg5 {[%emt 0:06:26]} 12. Ne3 {[%emt 0:06:27]} Bh5 {[%emt 0:10:53]} 13. Bd1 {[%emt 0:13:38]} h6 {[%emt 0:15:25]} 14. Qc2 {[%emt 0:02:11]} Qf6 {[%emt 0:02:05]} 15. a4 {[%emt 0:06:38]} Ne7 {[%emt 0:06:37]} 16. b4 {[%emt 0:02:39]} Nf4 {[%emt 0:01:56]} 17. Ne1 {[%emt 0:04:32]} Bxd1 {[%emt 0:03:19]} 18. Qxd1 {[%emt 0:00:27]} h5 {[%emt 0:02:46]} 19. g3 {[%emt 0:10:31]} Ne6 {[%emt 0:01:02]} 20. Ra2 {[%emt 0:00:31]} Qh6 {[%emt 0:04:02]} 21. h4 {[%emt 0:06:58]} Bxe3 {[%emt 0:07:21]} 22. Bxe3 {[%emt 0:00:21]} g5 {[%emt 0:02:26]} 23. Ng2 {[%emt 0:09:13]} Qg7 {[%emt 0:09:56]} 24. hxg5 {[%emt 0:07:21]} Nxg5 {[%emt 0:01:15]} 25. f4 {[%emt 0:00:39]} Nh3+ {[%emt 0:00:50]} 26. Kh2 {[%emt 0:00:03]} h4 {[%emt 0:00:15]} 27. g4 {[%emt 0:01:44]} Nxf4 {[%emt 0:03:31]} 28. Nxf4 {[%emt 0:00:12]} exf4 {[%emt 0:00:14]} 29. Bd4 {[%emt 0:00:17]} Qh6 {[%emt 0:00:27]} 30. Bxh8 {[%emt 0:01:35]} Qxh8 {[%emt 0:00:06]} 31. d4 {[%emt 0:00:20]} Ng6 {[%emt 0:00:43]} 32. Rb2 {[%emt 0:00:37]} Qf6 {[%emt 0:04:01]} 33. b5 {[%emt 0:01:56]} a5 {[%emt 0:01:22]} 34. b6 {[%emt 0:00:02]} c6 {[%emt 0:00:52]} 35. Qe2 {[%emt 0:02:18]} Kf8 {[%emt 0:01:10]} 36. Qg2 {[%emt 0:01:39]} Re8 {[%emt 0:00:39]} 37. Qf3 {[%emt 0:00:38]} Qe6 {[%emt 0:01:04]} 38. Re1 {[%emt 0:00:33]} Qc4 {[%emt 0:00:24]} 39. Rbe2 {[%emt 0:00:27]} Re6 {[%emt 0:00:31]} 40. d5 {[%emt 0:00:00]} Re5 {[%emt 0:00:00]} 41. dxc6 {[%emt 0:09:19]} Qxc6 {[%emt 0:00:31]} 42. Rd1 {[%emt 0:02:37]} Rc5 {[%emt 0:08:09]} 43. Rc2 {[%emt 0:05:15]} Qxb6 {[%emt 0:06:23]} 44. Qd3 {[%emt 0:03:05]} Rc6 {[%emt 0:01:23]} 45. Rf1 {[%emt 0:09:27]} Qb3 {[%emt 0:06:18]} 46. Rff2 {[%emt 0:00:07]} Qe6 {[%emt 0:01:23]} 47. Qd4 {[%emt 0:03:38]} Rc4 {[%emt 0:02:36]} 48. Qb6 {[%emt 0:00:05]} Qe5 {[%emt 0:00:51]} 49. Rf3 {[%emt 0:01:27]} Rxe4 {[%emt 0:01:17]} 50. Rcf2 {[%emt 0:00:30]} Kg7 {[%emt 0:03:36]} 51. Qxb7 {[%emt 0:00:09]} Re3 {[%emt 0:01:10]} 52. c4 {[%emt 0:00:45]} Re1 {[%emt 0:00:58]} 53. Qb2 {[%emt 0:00:41]} Ra1 {[%emt 0:00:51]} 54. Qd2 {[%emt 0:00:26]} Re1 {[%emt 0:01:28]} 55. Rg2 {[%emt 0:00:34]} Kg8 {[%emt 0:00:50]} 56. Rgf2 {[%emt 0:00:22]} Qa1 {[%emt 0:00:25]} 57. Rd3 {[%emt 0:00:39]} Rh1+ {[%emt 0:00:24]} 58. Kg2 {[%emt 0:00:05]} Ne5 {[%emt 0:00:58]} 0-1

[Event "POL-chT 1 Liga 2019"]
[Site "Dzwirzyno"]
[Date "2019.09.12"]
[Round "6.2"]
[White "Godzwon, Iwo"]
[Black "Roubalik, Jakub"]
[Result "1/2-1/2"]
[ECO "A26"]
[WhiteElo "2265"]
[BlackElo "2405"]
[Annotator "NA"]
[PlyCount "70"]
[EventDate "2019.09.07"]
[EventType "team-tourn"]
[EventCountry "POL"]
[SourceTitle "playchess.com"]
[Source "ChessBase"]
[SourceQuality "1"]
[TimeControl "40/5400+30:1800+30"]

1. c4 {[%emt 0:00:00]} e5 {[%emt 0:00:09]} 2. g3 {[%emt 0:00:00]} Nc6 {[%emt 0:01:32]} 3. Bg2 {[%emt 0:00:00]} g6 {[%emt 0:00:27]} 4. Nc3 {[%emt 0:01:22]} Bg7 {[%emt 0:00:22]} 5. d3 {[%emt 0:01:04]} d6 {[%emt 0:00:29]} 6. e3 {[%emt 0:00:25]} Nge7 {[%emt 0:01:45]} 7. Nge2 {[%emt 0:00:34]} Be6 {[%emt 0:00:45]} 8. Nd5 {[%emt 0:00:06]} O-O {[%emt 0:01:07]} 9. O-O {[%emt 0:00:31]} Qd7 {[%emt 0:01:24]} 10. Rb1 {[%emt 0:05:31]} Nd8 {[%emt 0:01:19]} 11. b4 {[%emt 0:00:06]} Nxd5 {[%emt 0:11:30]} 12. cxd5 {[%emt 0:00:10]} Bh3 {[%emt 0:00:09]} 13. Bxh3 {[%emt 0:07:29]} Qxh3 {[%emt 0:00:02]} 14. b5 {[%emt 0:00:05]} c6 {[%emt 0:03:50]} 15. bxc6 {[%emt 0:09:47]} bxc6 {[%emt 0:00:07]} 16. dxc6 {[%emt 0:02:55]} Nxc6 {[%emt 0:00:57]} 17. Ba3 {[%emt 0:00:11]} Rfd8 {[%emt 0:02:28]} 18. Qa4 {[%emt 0:09:05]} Qd7 {[%emt 0:09:14]} 19. Kg2 {[%emt 0:00:26]} Rac8 {[%emt 0:04:01]} 20. Rfc1 {[%emt 0:01:09]} Qe6 {[%emt 0:05:30]} 21. Rb2 {[%emt 0:01:36]} h5 {[%emt 0:30:18]} 22. Rbc2 {[%emt 0:20:08]} Ne7 {[%emt 0:02:13]} 23. Rxc8 {[%emt 0:00:45]} Rxc8 {[%emt 0:00:16]} 24. Qxa7 {[%emt 0:09:07]} Qd5+ {[%emt 0:06:31]} 25. Kf1 {[%emt 0:08:59]} Qxd3 {[%emt 0:03:04]} 26. Qxe7 {[%emt 0:00:04]} Rxc1+ {[%emt 0:00:27]} 27. Bxc1 {[%emt 0:00:02]} Qd1+ {[%emt 0:00:06]} 28. Kg2 {[%emt 0:00:01]} Qxe2 {[%emt 0:00:02]} 29. Qxd6 {[%emt 0:00:05]} Qxa2 {[%emt 0:00:32]} 30. Ba3 {[%emt 0:00:03]} Qc4 {[%emt 0:06:00]} 31. Qd8+ {[%emt 0:00:09]} Kh7 {[%emt 0:00:07]} 32. Bf8 {[%emt 0:00:15]} Qc6+ {[%emt 0:00:58]} 33. Kg1 {[%emt 0:00:04]} Qc1+ {[%emt 0:00:21]} 34. Kg2 {[%emt 0:00:04]} Qc6+ {[%emt 0:00:03]} 35. Kg1 {[%emt 0:00:02]} Qc1+ {[%emt 0:00:26]} 1/2-1/2

[Event "POL-chT 1 Liga 2019"]
[Site "Dzwirzyno"]
[Date "2019.09.12"]
[Round "6.3"]
[White "Paszewski, Mateusz"]
[Black "Tofil, Borys"]
[Result "1-0"]
[ECO "A10"]
[WhiteElo "2297"]
[BlackElo "2202"]
[Annotator "NA"]
[PlyCount "91"]
[EventDate "2019.09.07"]
[EventType "team-tourn"]
[EventCountry "POL"]
[SourceTitle "playchess.com"]
[Source "ChessBase"]
[SourceQuality "1"]
[TimeControl "40/5400+30:1800+30"]

1. c4 {[%emt 0:00:00]} d6 {[%emt 0:00:00]} 2. g3 {[%emt 0:00:00]} g6 {[%emt 0:00:19]} 3. Bg2 {[%emt 0:00:00]} Bg7 {[%emt 0:00:10]} 4. Nc3 {[%emt 0:00:00]} e5 {[%emt 0:05:31]} 5. d3 {[%emt 0:00:38]} Ne7 {[%emt 0:03:16]} 6. e4 {[%emt 0:05:22]} Nbc6 {[%emt 0:07:59]} 7. Nge2 {[%emt 0:00:06]} Be6 {[%emt 0:02:21]} 8. Nd5 {[%emt 0:01:38]} Qd7 {[%emt 0:15:38]} 9. Bg5 {[%emt 0:04:21]} Ng8 {[%emt 0:04:01]} 10. Qd2 {[%emt 0:02:06]} f6 {[%emt 0:02:13]} 11. Be3 {[%emt 0:00:03]} Nce7 {[%emt 0:00:24]} 12. d4 {[%emt 0:18:03]} c6 {[%emt 0:16:28]} 13. Nxe7 {[%emt 0:00:19]} Nxe7 {[%emt 0:02:55]} 14. d5 {[%emt 0:01:42]} Bf7 {[%emt 0:04:47]} 15. O-O {[%emt 0:04:03]} O-O {[%emt 0:01:02]} 16. Rac1 {[%emt 0:04:12]} c5 {[%emt 0:02:03]} 17. Nc3 {[%emt 0:02:58]} Kh8 {[%emt 0:06:07]} 18. a3 {[%emt 0:03:57]} f5 {[%emt 0:05:32]} 19. Bh3 {[%emt 0:02:08]} Qd8 {[%emt 0:05:28]} 20. b4 {[%emt 0:09:23]} b6 {[%emt 0:00:59]} 21. bxc5 {[%emt 0:02:57]} dxc5 {[%emt 0:03:12]} 22. Bg5 {[%emt 0:02:29]} Qd7 {[%emt 0:00:47]} 23. Bxe7 {[%emt 0:03:02]} Qxe7 {[%emt 0:00:06]} 24. exf5 {[%emt 0:00:02]} gxf5 {[%emt 0:00:39]} 25. Bxf5 {[%emt 0:00:47]} Qf6 {[%emt 0:00:31]} 26. Qd3 {[%emt 0:06:42]} Bxd5 {[%emt 0:00:12]} 27. Nxd5 {[%emt 0:01:10]} Qxf5 {[%emt 0:00:07]} 28. Qxf5 {[%emt 0:00:37]} Rxf5 {[%emt 0:00:02]} 29. f3 {[%emt 0:00:10]} Re8 {[%emt 0:02:05]} 30. Rce1 {[%emt 0:01:02]} Kg8 {[%emt 0:01:17]} 31. Kg2 {[%emt 0:01:55]} Rf7 {[%emt 0:01:16]} 32. a4 {[%emt 0:03:04]} Kf8 {[%emt 0:00:25]} 33. Re4 {[%emt 0:00:31]} Rb8 {[%emt 0:00:51]} 34. Rd1 {[%emt 0:03:40]} Rd8 {[%emt 0:02:36]} 35. Re3 {[%emt 0:00:50]} Rfd7 {[%emt 0:00:34]} 36. Rb1 {[%emt 0:02:46]} Re8 {[%emt 0:03:02]} 37. h4 {[%emt 0:07:24]} Rf7 {[%emt 0:01:06]} 38. g4 {[%emt 0:02:50]} Rd7 {[%emt 0:01:09]} 39. Kg3 {[%emt 0:00:10]} Rf7 {[%emt 0:00:13]} 40. g5 {[%emt 0:00:00]} h6 {[%emt 0:00:00]} 41. g6 {[%emt 0:08:32]} Rd7 {[%emt 0:05:43]} 42. h5 {[%emt 0:00:29]} Rd6 {[%emt 0:04:12]} 43. Kg4 {[%emt 0:02:34]} Ree6 {[%emt 0:01:02]} 44. Rbe1 {[%emt 0:01:51]} a6 {[%emt 0:00:49]} 45. f4 {[%emt 0:05:30]} b5 {[%emt 0:01:15]} 46. f5 {[%emt 0:01:45]} 1-0

[Event "POL-chT 1 Liga 2019"]
[Site "Dzwirzyno"]
[Date "2019.09.12"]
[Round "6.4"]
[White "Kowalski, Maciej"]
[Black "Ciesla, Adam"]
[Result "0-1"]
[ECO "A04"]
[WhiteElo "2095"]
[BlackElo "2273"]
[Annotator "NA"]
[PlyCount "110"]
[EventDate "2019.09.07"]
[EventType "team-tourn"]
[EventCountry "POL"]
[SourceTitle "playchess.com"]
[Source "ChessBase"]
[SourceQuality "1"]
[TimeControl "40/5400+30:1800+30"]

1. Nf3 {[%emt 0:00:00]} g6 {[%emt 0:00:00]} 2. g3 {[%emt 0:00:14]} Bg7 {[%emt 0:00:00]} 3. Bg2 {[%emt 0:00:01]} e5 {[%emt 0:03:10]} 4. d3 {[%emt 0:00:11]} f5 {[%emt 0:07:30]} 5. c3 {[%emt 0:02:01]} d5 {[%emt 0:05:30]} 6. e4 {[%emt 0:02:35]} dxe4 {[%emt 0:01:34]} 7. dxe4 {[%emt 0:00:07]} Qxd1+ {[%emt 0:01:11]} 8. Kxd1 {[%emt 0:00:02]} Nf6 {[%emt 0:08:41]} 9. Nbd2 {[%emt 0:16:16]} O-O {[%emt 0:05:57]} 10. exf5 {[%emt 0:07:47]} Nc6 {[%emt 0:18:28]} 11. fxg6 {[%emt 0:05:09]} hxg6 {[%emt 0:00:30]} 12. h3 {[%emt 0:02:05]} Bf5 {[%emt 0:04:15]} 13. Ng5 {[%emt 0:02:45]} Rad8 {[%emt 0:14:45]} 14. Ke1 {[%emt 0:00:17]} e4 {[%emt 0:00:30]} 15. Nc4 {[%emt 0:04:00]} Bh6 {[%emt 0:06:36]} 16. g4 {[%emt 0:04:36]} e3 {[%emt 0:05:25]} 17. gxf5 {[%emt 0:22:08]} Bxg5 {[%emt 0:00:17]} 18. Bxe3 {[%emt 0:00:08]} Bxe3 {[%emt 0:00:40]} 19. Nxe3 {[%emt 0:00:47]} Ne5 {[%emt 0:00:37]} 20. Rg1 {[%emt 0:06:47]} gxf5 {[%emt 0:01:05]} 21. Nxf5 {[%emt 0:03:48]} Kh8 {[%emt 0:00:39]} 22. Nd4 {[%emt 0:02:06]} Rd6 {[%emt 0:05:25]} 23. b4 {[%emt 0:06:15]} b6 {[%emt 0:00:01]} 24. b5 {[%emt 0:00:48]} Nh5 {[%emt 0:00:04]} 25. Be4 {[%emt 0:01:15]} Nf4 {[%emt 0:00:04]} 26. Rg5 {[%emt 0:02:45]} Re8 {[%emt 0:00:54]} 27. Kf1 {[%emt 0:01:27]} Rh6 {[%emt 0:00:10]} 28. Re1 {[%emt 0:00:44]} Nc4 {[%emt 0:01:53]} 29. Nb3 {[%emt 0:02:50]} Rxh3 {[%emt 0:02:37]} 30. Rg3 {[%emt 0:00:01]} Rh4 {[%emt 0:01:18]} 31. Bc6 {[%emt 0:00:54]} Rf8 {[%emt 0:01:03]} 32. Re4 {[%emt 0:01:10]} Nd6 {[%emt 0:01:38]} 33. Ra4 {[%emt 0:00:01]} Nf5 {[%emt 0:00:58]} 34. Rg5 {[%emt 0:01:08]} Ne3+ {[%emt 0:00:30]} 35. fxe3 {[%emt 0:01:18]} Ne6+ {[%emt 0:00:20]} 36. Ke1 {[%emt 0:01:48]} Rxa4 {[%emt 0:00:06]} 37. Rg2 {[%emt 0:00:29]} Rh4 {[%emt 0:01:57]} 38. Kd2 {[%emt 0:00:28]} Rd8+ {[%emt 0:00:48]} 39. Kc2 {[%emt 0:00:11]} Rh3 {[%emt 0:00:32]} 40. Re2 {[%emt 0:00:00]} Rd6 {[%emt 0:00:00]} 41. Nd4 {[%emt 0:01:27]} Nc5 {[%emt 0:08:39]} 42. Nf5 {[%emt 0:06:10]} Re6 {[%emt 0:03:46]} 43. e4 {[%emt 0:00:57]} Re5 {[%emt 0:06:35]} 44. Bd5 {[%emt 0:06:05]} Nd3 {[%emt 0:02:46]} 45. Rd2 {[%emt 0:04:22]} Nc5 {[%emt 0:01:14]} 46. Re2 {[%emt 0:02:47]} Nd3 {[%emt 0:00:31]} 47. Rd2 {[%emt 0:00:07]} Nf4 {[%emt 0:01:59]} 48. Bc6 {[%emt 0:00:06]} Rc5 {[%emt 0:00:57]} 49. Rd8+ {[%emt 0:02:06]} Kh7 {[%emt 0:00:02]} 50. Rd7+ {[%emt 0:00:16]} Kg6 {[%emt 0:00:54]} 51. Rxc7 {[%emt 0:00:27]} Rhxc3+ {[%emt 0:02:19]} 52. Kb1 {[%emt 0:00:07]} Rc1+ {[%emt 0:00:34]} 53. Kb2 {[%emt 0:00:01]} Nd3+ {[%emt 0:00:10]} 54. Kb3 {[%emt 0:00:10]} R1c3+ {[%emt 0:00:16]} 55. Ka4 {[%emt 0:00:06]} R5c4# {[%emt 0:00:08]} 0-1

[Event "POL-chT 1 Liga 2019"]
[Site "Dzwirzyno"]
[Date "2019.09.12"]
[Round "6.5"]
[White "Tomaszewski, Roman"]
[Black "Rogala, Milosz"]
[Result "1-0"]
[ECO "A03"]
[WhiteElo "2195"]
[BlackElo "1788"]
[Annotator "NA"]
[PlyCount "79"]
[EventDate "2019.09.07"]
[EventType "team-tourn"]
[EventCountry "POL"]
[SourceTitle "playchess.com"]
[Source "ChessBase"]
[SourceQuality "1"]
[TimeControl "40/5400+30:1800+30"]

1. f4 {[%emt 0:00:07]} d5 {[%emt 0:00:00]} 2. Nf3 {[%emt 0:00:30]} Nf6 {[%emt 0:00:23]} 3. g3 {[%emt 0:00:30]} c5 {[%emt 0:00:30]} 4. Bg2 {[%emt 0:00:30]} Nc6 {[%emt 0:00:30]} 5. O-O {[%emt 0:00:30]} e6 {[%emt 0:00:30]} 6. d3 {[%emt 0:00:30]} Bd6 {[%emt 0:00:30]} 7. Nc3 {[%emt 0:00:30]} a6 {[%emt 0:00:30]} 8. e4 {[%emt 0:00:30]} dxe4 {[%emt 0:00:30]} 9. dxe4 {[%emt 0:00:30]} e5 {[%emt 0:00:30]} 10. fxe5 {[%emt 0:00:30]} Nxe5 {[%emt 0:00:30]} 11. Bf4 {[%emt 0:00:30]} Qc7 {[%emt 0:00:30]} 12. Nxe5 {[%emt 0:00:30]} Bxe5 {[%emt 0:00:30]} 13. Nd5 {[%emt 0:00:30]} Nxd5 {[%emt 0:00:30]} 14. exd5 {[%emt 0:00:30]} Bxf4 {[%emt 0:00:30]} 15. Rxf4 {[%emt 0:00:30]} O-O {[%emt 0:00:30]} 16. d6 {[%emt 0:00:30]} Qd8 {[%emt 0:00:30]} 17. Bd5 {[%emt 0:00:30]} Be6 {[%emt 0:00:30]} 18. Bxe6 {[%emt 0:00:30]} fxe6 {[%emt 0:00:30]} 19. Rxf8+ {[%emt 0:00:30]} Qxf8 {[%emt 0:00:30]} 20. Qd2 {[%emt 0:00:30]} Rd8 {[%emt 0:00:30]} 21. d7 {[%emt 0:00:30]} Qf6 {[%emt 0:00:30]} 22. c3 {[%emt 0:00:30]} Qh6 {[%emt 0:00:30]} 23. Qf2 {[%emt 0:00:30]} Rxd7 {[%emt 0:00:30]} 24. Rf1 {[%emt 0:00:30]} Qf6 {[%emt 0:00:30]} 25. Qxf6 {[%emt 0:00:30]} gxf6 {[%emt 0:00:30]} 26. Rxf6 {[%emt 0:00:30]} Rd2 {[%emt 0:00:30]} 27. Rf2 {[%emt 0:00:30]} Rd1+ {[%emt 0:00:30]} 28. Kg2 {[%emt 0:00:30]} Kg7 {[%emt 0:00:30]} 29. a3 {[%emt 0:00:30]} Re1 {[%emt 0:00:30]} 30. Kh3 {[%emt 0:00:30]} Re4 {[%emt 0:00:30]} 31. Rd2 {[%emt 0:00:30]} b5 {[%emt 0:00:30]} 32. Rd7+ {[%emt 0:00:30]} Kg6 {[%emt 0:00:30]} 33. Ra7 {[%emt 0:00:30]} Re2 {[%emt 0:00:30]} 34. b4 {[%emt 0:00:30]} c4 {[%emt 0:00:30]} 35. Rxa6 {[%emt 0:00:30]} Re3 {[%emt 0:00:30]} 36. Kh4 {[%emt 0:00:30]} Rxc3 {[%emt 0:00:30]} 37. Rxe6+ {[%emt 0:00:30]} Kg7 {[%emt 0:00:30]} 38. Kg5 {[%emt 0:00:30]} Rxa3 {[%emt 0:00:30]} 39. Re7+ {[%emt 0:00:30]} Kg8 {[%emt 0:00:30]} 40. Rb7 {[%emt 0:00:30]} 1-0